Workbook

Sheet 南京市鼓楼区残疾人两项补贴发放统计表
A1: 鼓楼区残疾人两项补贴统计表（2025年12月）
A2: 序 号 | B2: 发 放 单 位 | C2: 困难残疾人生活补贴（万元） | Q2: 重度残疾人护理（服务）补贴（万元） | V2: 实发金额合计（万元） | W2: 拨付金额（万元）（=实发-助残服务）
C3: 低保内 | I3: 低保外 | O3: 合计 | Q3: 重残 （140元） | S3: 低保（边缘）内重残 (400元服务) | U3: 合计
C4: 重残 （低保金50%） | E4: 3、4级精、智残 （低保金40%） | G4: 非重残 （低保金25%） | I4: 重残 （低保金100%） | K4: 特殊困难残疾人 （低保金60%） | M4: 无业无收入3、4级精神、智力残 （低保金40%）
C5: 人数 | D5: 补贴 金额 | E5: 人数 | F5: 补贴 金额 | G5: 人数 | H5: 补贴 金额 | I5: 人数 | J5: 补贴 金额 | K5: 人数 | L5: 补贴 金额 | M5: 人数 | N5: 补贴 金额 | O5: 人数 | P5: 补贴 金额 | Q5: 人数 | R5: 补贴 金额 | S5: 人数 | T5: 补贴 金额 | U5: 金 额
A6: 1 | B6: 湖南路 | C6: 26 | D6: 1.449500 | E6: 8 | F6: 0.3568 | G6: 12 | H6: 0.334500 | I6: 42 | J6: 4.6830 | K6: 2 | L6: 0.1338 | M6: 24 | N6: 1.1150 | O6: =C6+E6+G6+I6+K6+M6 -> 114 | P6: =N6+L6+J6+H6+F6+D6 -> 8.072600 | Q6: 341 | R6: 4.8160 | S6: 8 | T6: =400*S6/10000 -> 0.3200 | U6: =R6+T6 -> 5.1360 | V6: =U6+P6 -> 13.208600 | W6: =V6-T6 -> 12.888600
A7: 2 | B7: 宁海路 | C7: 33 | D7: 1.839750 | E7: 22 | F7: 0.9812 | G7: 7 | H7: 0.195125 | I7: 50 | J7: 5.5750 | K7: 1 | L7: 0.0669 | M7: 34 | N7: 1.5164 | O7: 147 | P7: 10.174375 | Q7: 344 | R7: 4.8440 | S7: 10 | T7: 0.4000 | U7: 5.2440 | V7: 15.418375 | W7: 15.018375
A8: 3 | B8: 中央门 | C8: 52 | D8: 2.899000 | E8: 33 | F8: 1.4718 | G8: 29 | H8: 0.808375 | I8: 103 | J8: 11.4845 | K8: 2 | L8: 0.1338 | M8: 31 | N8: 1.3826 | O8: 250 | P8: 18.180075 | Q8: 554 | R8: 7.8120 | S8: 24 | T8: 0.9600 | U8: 8.7720 | V8: 26.952075 | W8: 25.992075
A9: 4 | B9: 挹江门 | C9: 42 | D9: =557.5*C9/10000 -> 2.341500 | E9: 18 | F9: =446*E9/10000 -> 0.8028 | G9: 18 | H9: =278.75*G9/10000 -> 0.501750 | I9: 69 | J9: 7.6935 | K9: 2 | L9: 0.1338 | M9: 32 | N9: 1.4718 | O9: 181 | P9: 12.945150 | Q9: =417+42 -> 459 | R9: =5.894+0.588 -> 6.4820 | S9: 7 | T9: 0.2800 | U9: 6.7620 | V9: 19.707150 | W9: 19.427150
A10: 5 | B10: 华侨路 | C10: 30 | D10: =(557.5*C10/10000) -> 1.672500 | E10: 8 | F10: =446*E10/10000 -> 0.3568 | G10: 11 | H10: =278.75*G10/10000+0.027875 -> 0.334500 | I10: 42 | J10: =1115*I10/10000 -> 4.6830 | K10: 1 | L10: =669*K10/10000 -> 0.0669 | M10: 17 | N10: =446*M10/10000 -> 0.7582 | O10: 109 | P10: 7.871900 | Q10: 262 | R10: =140*Q10/10000 -> 3.6680 | S10: 7 | T10: 0.2800 | U10: 3.9480 | V10: 11.819900 | W10: 11.539900
A11: 6 | B11: 江东 | C11: 19 | D11: 1.059250 | E11: 14 | F11: 0.6244 | G11: 5 | H11: 0.139375 | I11: 50 | J11: 5.5750 | K11: 0 | L11: 0.0000 | M11: 17 | N11: 0.8474 | O11: 105 | P11: 8.245425 | Q11: 297 | R11: 4.2280 | S11: 4 | T11: 0.1600 | U11: 4.3880 | V11: 12.633425 | W11: 12.473425
A12: 7 | B12: 凤凰 | C12: 31 | D12: 1.728250 | E12: 27 | F12: 1.2042 | G12: 27 | H12: 0.752625 | I12: 71 | J12: 8.0280 | K12: 0 | L12: 0.0000 | M12: 24 | N12: 1.1596 | O12: 180 | P12: 12.872675 | Q12: 373 | R12: 5.2360 | S12: 3 | T12: 0.1200 | U12: 5.3560 | V12: 18.228675 | W12: 18.108675
A13: 8 | B13: 热河南路 | C13: 26 | D13: 1.449500 | E13: 17 | F13: 0.7582 | G13: 19 | H13: 0.529625 | I13: 47 | J13: 5.3074 | K13: 2 | L13: =669*K13/10000 -> 0.1338 | M13: 16 | N13: 0.7582 | O13: 127 | P13: 8.936725 | Q13: 331 | R13: 4.6760 | S13: 4 | T13: 0.1600 | U13: 4.8360 | V13: 13.772725 | W13: 13.612725
A14: 9 | B14: 下关 | C14: 58 | D14: 3.233500 | E14: 30 | F14: 1.3380 | G14: 24 | H14: 0.669000 | I14: 59 | J14: =6.5785+0.1115 -> 6.6900 | K14: 0 | L14: 0.0000 | M14: 17 | N14: =0.7582+0.0446 -> 0.8028 | O14: 188 | P14: 12.733300 | Q14: 391 | R14: =5.474+0.056 -> 5.5300 | S14: 10 | T14: 0.4000 | U14: 5.9300 | V14: 18.663300 | W14: 18.263300
A15: 10 | B15: 建宁路 | C15: 32 | D15: 1.784000 | E15: 29 | F15: 1.2934 | G15: 8 | H15: 0.223000 | I15: 52 | J15: 5.7980 | K15: 0 | L15: 0.0000 | M15: 15 | N15: 0.6690 | O15: 136 | P15: 9.767400 | Q15: 302 | R15: 4.2700 | S15: 4 | T15: 0.1600 | U15: 4.4300 | V15: 14.197400 | W15: 14.037400
A16: 11 | B16: 小市 | C16: 66 | D16: 3.679500 | E16: 44 | F16: 1.9624 | G16: 32 | H16: 0.892000 | I16: 75 | J16: 8.3625 | K16: 2 | L16: 0.1338 | M16: 26 | N16: 1.1596 | O16: 245 | P16: 16.189800 | Q16: 426 | R16: 5.9920 | S16: 17 | T16: =400*S16/10000 -> 0.6800 | U16: 6.6720 | V16: 22.861800 | W16: 22.181800
A17: 12 | B17: 宝塔桥 | C17: 99 | D17: =C17*0.05575 -> 5.519250 | E17: 66 | F17: =E17*0.0446 -> 2.9436 | G17: 45 | H17: =G17*0.027875 -> 1.254375 | I17: 73 | J17: 8.2510 | K17: 0 | L17: 0.0000 | M17: 59 | N17: 2.7652 | O17: 342 | P17: 20.733425 | Q17: 509 | R17: 7.1540 | S17: 25 | T17: 1.0000 | U17: 8.1540 | V17: 28.887425 | W17: 27.887425
A18: 13 | B18: 幕府山 | C18: 51 | D18: 2.843250 | E18: 31 | F18: 1.3826 | G18: 21 | H18: 0.585375 | I18: 61 | J18: 6.8015 | K18: 0 | L18: =591*K18/10000 -> 0.0000 | M18: 14 | N18: 0.6244 | O18: 178 | P18: =D18+F18+H18+J18+L18+N18 -> 12.237125 | Q18: 321 | R18: 4.5220 | S18: 7 | T18: 0.2800 | U18: 4.8020 | V18: =P18+U18 -> 17.039125 | W18: 16.759125
A19: 合计 | C19: =SUM(C6:C18) -> 565 | D19: 31.498750 | E19: 347 | F19: 15.4762 | G19: 258 | H19: 7.219625 | I19: 794 | J19: 88.9324 | K19: 12 | L19: 0.8028 | M19: 326 | N19: 15.0302 | O19: 2302 | P19: 158.959975 | Q19: 4910 | R19: 69.2300 | S19: 130 | T19: 4.7600 | U19: 73.9900 | V19: =P19+U19 -> 232.949975 | W19: =SUM(W6:W18) -> 228.189975
A20: 备注 | C20: 一、鼓楼区12月补发：1、生活补贴：低内25%，1人278.75元；低外100%，4人4014元；低外40%，10人4906元。合计9198.75元。2、护理补贴：35人4900元。二、助残校正11人，130-11=119，实际为4.76万元 | U20: =P19+U19 -> 232.949975
